lending/lending_fUSD_20260124
["ID","MTS","AMOUNT","RATE_DAILY","PERIOD"]
[403172251,1769242240886,-1797.49781332,0.00012787,2]
[403172252,1769242240897,-1797.49781332,0.00012787,2]
[403172253,1769242240909,-1797.49781332,0.00012787,2]
[403172254,1769242240920,-1797.49781332,0.00012787,2]
[403172255,1769242240929,-200.0,0.00012787,2]
[403172256,1769242240939,-295.84,0.00012787,2]
[403172257,1769242240948,-151.0,0.00012787,2]
[403172258,1769242240958,-417.55764265,0.000128,2]
[403172259,1769242240967,-1281.24186018,0.00012812,2]
[403172260,1769242240977,-200.0,0.00012915,2]
[403172261,1769242240988,-483.28758916,0.00012922,2]
[403172262,1769242240997,-174.61919141,0.00012922,2]
[403172263,1769242241006,-151.0,0.00012922,2]
[403172264,1769242241018,-854.2589148,0.00012922,2]
[403172265,1769242241027,-151.0,0.00012922,2]
[403172266,1769242241037,-151.0,0.00012922,2]
[403172267,1769242241048,-151.0,0.00012922,2]
[403172268,1769242241059,-151.0,0.00012922,2]
[403172269,1769242241068,-151.0,0.00012922,2]
[403172270,1769242241078,-151.0,0.00012922,2]
[403172271,1769242241088,-151.0,0.00012922,2]
[403172272,1769242241098,-151.0,0.00012922,2]
[403172273,1769242241108,-151.0,0.00012922,2]
[403172274,1769242241117,-151.0,0.00012922,2]
[403172275,1769242241126,-151.0,0.00012922,2]
[403172276,1769242241135,-322.6107,0.00012922,2]
[403172277,1769242241144,-500.0,0.00012922,2]
[403172278,1769242241154,-500.0,0.00012922,2]
[403172279,1769242241163,-500.0,0.00012922,2]
[403172280,1769242241173,-500.0,0.00012922,2]
[403172281,1769242241182,-500.0,0.00012922,2]
[403172282,1769242241191,-500.0,0.00012922,2]
[403172283,1769242241202,-500.0,0.00012922,2]
[403172284,1769242241215,-500.0,0.00012922,2]
[403172285,1769242241225,-500.0,0.00012922,2]
[403172286,1769242241236,-500.0,0.00012922,2]
[403172287,1769242241247,-587.40086323,0.00012922,2]
[403172288,1769242241256,-229.66301342,0.00012922,2]
[403172289,1769242241267,-7287.0,0.00012962,2]
[403172290,1769242241276,-2143.51,0.00013015,2]
[403172291,1769242241287,-200.0,0.00013044,2]
[403172292,1769242241299,-295.84,0.00013061,2]
[403172293,1769242241309,-1000.0,0.00013087,2]
[403172294,1769242241318,-161.92,0.00013111,2]
[403172295,1769242241327,-222.33,0.0001313,2]
[403172296,1769242241337,-1000.0,0.00013139,2]
[403172297,1769242241346,-18635.90322454,0.00013143,2]
[403172298,1769242241355,-9351.13,0.00013151,2]
[403172299,1769242241364,-200.0,0.00013174,2]
[403172300,1769242241373,-206.58,0.00013205,2]
[403172301,1769242241382,-9288.74,0.0001322,2]
[403172302,1769242241392,-290.0,0.00013237,2]
[403172303,1769242241401,-4721.62468318,0.00013278,2]
[403172304,1769242241411,-335.0,0.00013302,2]
[403172305,1769242241420,-200.0,0.00013306,2]
[403172306,1769242241429,-335.0,0.00013307,2]
[403172307,1769242241439,-335.0,0.00013316,2]
[403172308,1769242241448,-295.86694153,0.00013335,2]
[403172309,1769242241457,-150.0,0.00013388,2]
[403172310,1769242241466,-150.0,0.00013388,2]
[403172311,1769242241475,-153.44078669,0.00013388,2]
[403172312,1769242241484,-150.0,0.00013388,2]
[403172313,1769242241494,-335.0,0.00013416,2]
[403172314,1769242241503,-221.2818579,0.00013443,2]
[403172315,1769242241512,-150.0,0.00013443,2]
[403172316,1769242241521,-500.0,0.00013446,2]
[403172317,1769242241531,-181.08010149,0.0001347,2]
[403172318,1769242241540,-262.5256687,0.0001347,2]
[403172319,1769242241549,-885.86649465,0.0001347,2]
[403172320,1769242241558,-150.0,0.00013498,2]
[403172321,1769242241567,-335.0,0.0001355,2]
[403172322,1769242241576,-150.0,0.00013552,2]
[403172323,1769242241585,-209.76,0.00013566,2]
[403172324,1769242241594,-246.76380553,0.00013607,2]
[403172325,1769242241604,-335.0,0.0001361,2]
[403172326,1769242241613,-335.0,0.00013614,2]
[403172327,1769242241623,-335.0,0.0001364,2]
[403172328,1769242241633,-255.0,0.00013695,2]
[403172329,1769242241643,-500.0,0.00013698,2]
[403172330,1769242241652,-500.0,0.00013698,2]
[403172331,1769242241661,-500.0,0.00013698,2]
[403172332,1769242241673,-359.98096521,0.00013698,2]
[403172333,1769242241681,-500.0,0.00013698,2]
[403172334,1769242241690,-500.0,0.00013698,2]
[403172335,1769242241699,-500.0,0.00013698,2]
[403172336,1769242241709,-448.17762938,0.00013698,2]
[403172337,1769242241718,-500.0,0.00013698,2]
[403172338,1769242241727,-500.0,0.00013698,2]
[403172339,1769242241737,-589.03869133,0.00013698,2]
[403172340,1769242241747,-500.0,0.00013698,2]
[403172341,1769242241756,-500.0,0.00013698,2]
[403172342,1769242241765,-500.0,0.00013698,2]
[403172343,1769242241774,-500.0,0.00013698,2]
[403172344,1769242241783,-500.0,0.00013698,2]
[403172345,1769242241792,-500.0,0.00013698,2]
[403172346,1769242241801,-500.0,0.00013698,2]
[403172347,1769242241810,-519.05995183,0.00013698,2]
[403172348,1769242241819,-250.0,0.00013699,2]
[403172349,1769242241828,-250.0,0.00013699,2]
[403172350,1769242241837,-250.0,0.00013699,2]
[403172351,1769242241846,-250.0,0.00013699,2]
[403172352,1769242241855,-250.0,0.00013699,2]
[403172353,1769242241865,-250.0,0.00013699,2]
[403172354,1769242241875,-250.0,0.00013699,2]
[403172355,1769242241885,-250.0,0.00013699,2]
[403172356,1769242241896,-250.0,0.00013699,2]
[403172357,1769242241907,-250.0,0.00013699,2]
[403172358,1769242241917,-250.0,0.00013699,2]
[403172359,1769242241927,-500.0,0.00013699,2]
[403172360,1769242241936,-500.0,0.00013699,2]
[403172361,1769242241945,-500.0,0.00013699,2]
[403172362,1769242241954,-500.0,0.00013699,2]
[403172363,1769242241964,-500.0,0.00013699,2]
[403172364,1769242241974,-500.0,0.00013699,2]
[403172365,1769242241985,-500.0,0.00013699,2]
[403172366,1769242241995,-500.0,0.00013699,2]
[403172367,1769242242006,-500.0,0.00013699,2]
[403172368,1769242242016,-500.0,0.00013699,2]
[403172369,1769242242026,-500.0,0.00013699,2]
[403172370,1769242242036,-500.0,0.00013699,2]
[403172371,1769242242046,-500.0,0.00013699,2]
[403172372,1769242242056,-500.0,0.00013699,2]
[403172373,1769242242069,-500.0,0.00013699,2]
[403172374,1769242242079,-500.0,0.00013699,2]
[403172375,1769242242088,-500.0,0.00013699,2]
[403172376,1769242242097,-500.0,0.00013699,2]
[403172377,1769242242108,-500.0,0.00013699,2]
[403172378,1769242242120,-500.0,0.00013699,2]
[403172379,1769242242130,-500.0,0.00013699,2]
[403172380,1769242242139,-500.0,0.00013699,2]
[403172381,1769242242149,-500.0,0.00013699,2]
[403172382,1769242242158,-500.0,0.00013699,2]
[403172383,1769242242168,-500.0,0.00013699,2]
[403172384,1769242242178,-500.0,0.00013699,2]
[403172385,1769242242188,-500.0,0.00013699,2]
[403172386,1769242242198,-500.0,0.00013699,2]
[403172387,1769242242207,-500.0,0.00013699,2]
[403172388,1769242242216,-500.0,0.00013699,2]
[403172389,1769242242227,-500.0,0.00013699,2]
[403172390,1769242242237,-500.0,0.00013699,2]
[403172391,1769242242247,-500.0,0.00013699,2]
[403172392,1769242242258,-500.0,0.00013699,2]
[403172393,1769242242267,-500.0,0.00013699,2]
[403172394,1769242242277,-500.0,0.00013699,2]
[403172395,1769242242288,-500.0,0.00013699,2]
[403172396,1769242242299,-500.0,0.00013699,2]
[403172397,1769242242310,-500.0,0.00013699,2]
[403172398,1769242242320,-500.0,0.00013699,2]
[403172399,1769242242329,-500.0,0.00013699,2]
[403172400,1769242242338,-500.0,0.00013699,2]
[403172401,1769242242347,-500.0,0.00013699,2]
[403172402,1769242242356,-500.0,0.00013699,2]
[403172403,1769242242366,-500.0,0.00013699,2]
[403172404,1769242242375,-500.0,0.00013699,2]
[403172405,1769242242385,-500.0,0.00013699,2]
[403172406,1769242242394,-500.0,0.00013699,2]
[403172407,1769242242403,-648.71240991,0.00013699,2]
[403172408,1769242242412,-500.0,0.00013699,2]
[403172409,1769242242421,-500.0,0.00013699,2]
[403172410,1769242242430,-500.0,0.00013699,2]
[403172411,1769242242440,-500.0,0.00013699,2]
[403172412,1769242242450,-600.0,0.00013699,2]
[403172413,1769242242460,-500.0,0.00013699,2]
[403172414,1769242242471,-500.0,0.00013699,2]
[403172415,1769242242480,-500.0,0.00013699,2]
[403172416,1769242242489,-237.18006475,0.00013702,2]
[403172417,1769242242499,-335.0,0.00013704,2]
[403172418,1769242242508,-335.0,0.00013737,2]
[403172419,1769242242518,-335.0,0.00013786,2]
[403172420,1769242242527,-335.0,0.00013811,2]
[403172421,1769242242537,-420.0,0.00013823,2]
[403172422,1769242242546,-420.0,0.00013823,2]
[403172423,1769242242556,-335.0,0.0001383,2]
[403172424,1769242242566,-304.17258489,0.00013844,2]
[403172425,1769242242575,-300.0,0.00013847,2]
[403172426,1769242242584,-4721.62468318,0.00013856,2]
[403172427,1769242242593,-195.0,0.00013859,2]
[403172428,1769242242603,-300.0,0.00013859,2]
[403172429,1769242242614,-250.0,0.00013859,2]
[403172430,1769242242623,-195.0,0.00013859,2]
[403172431,1769242242632,-250.0,0.00013859,2]
[403172432,1769242242641,-1680.0,0.00013859,2]
[403172433,1769242242651,-1055.54,0.0001386,2]
[403172434,1769242242661,-335.0,0.00013903,2]
[403172435,1769242242674,-452.46278353,0.00013921,2]
[403172436,1769242242684,-6003.0,0.00013924,2]
[403172437,1769242242693,-409.0,0.00013931,2]
[403172438,1769242242702,-195.0,0.00013956,2]
[403172439,1769242242711,-195.0,0.00013969,2]
[403172440,1769242242950,-250.0,0.00013969,2]
[403172442,1769242242973,-335.0,0.00013981,2]
[403172444,1769242242982,-187.78006525,0.00014018,2]
[403172446,1769242242991,-918.64355495,0.00014018,2]
[403172448,1769242243001,-335.0,0.00014043,2]
[403172449,1769242243010,-195.0,0.00014066,2]
[403172450,1769242243019,-5090.652,0.00014077,2]
[403172451,1769242243028,-414.009,0.00014077,2]
[403172452,1769242243038,-900.26216537,0.0001408,2]
[403172453,1769242243047,-335.0,0.0001411,2]
[403172454,1769242243056,-916.0,0.0001412,2]
[403172455,1769242243065,-1207.914,0.0001412,2]
[403172456,1769242243074,-4830.0,0.0001412,2]
[403172457,1769242243084,-2442.0,0.0001412,2]
[403172458,1769242243093,-6568.0,0.0001412,2]
[403172459,1769242243102,-335.0,0.00014147,2]
[403172460,1769242243111,-335.0,0.00014156,2]
[403172461,1769242243120,-335.0,0.00014164,2]
[403172462,1769242243129,-334.5472959,0.00014291,2]
[403172463,1769242243138,-335.0,0.00014309,2]
[403172464,1769242243147,-335.0,0.00014365,2]
[403172465,1769242243157,-335.0,0.00014376,2]
[403172466,1769242243167,-213.0,0.00014395,2]
[403172467,1769242243175,-266.0,0.00014395,2]
[403172468,1769242243184,-200.0,0.00014395,2]
[403172469,1769242243194,-200.0,0.00014395,2]
[403172470,1769242243203,-150.0,0.00014395,2]
[403172471,1769242243214,-170.831,0.00014395,2]
[403172472,1769242243224,-150.0,0.00014395,2]
[403172473,1769242243233,-150.0,0.00014395,2]
[403172474,1769242243242,-150.0,0.00014395,2]
[403172475,1769242243251,-150.0,0.00014395,2]
[403172476,1769242243260,-150.0,0.00014395,2]
[403172477,1769242243269,-150.0,0.00014395,2]
[403172479,1769242243279,-3476.0,0.00014395,2]
[403172481,1769242243288,-615.0,0.00014395,2]
[403172483,1769242243297,-1408.0,0.00014395,2]
[403172485,1769242243306,-1269.0,0.00014395,2]
[403172486,1769242243315,-335.0,0.00014408,2]
[403172487,1769242243324,-4721.62468318,0.00014433,2]
[403172488,1769242243334,-194.72792766,0.00014566,2]
[403172489,1769242243343,-952.63336648,0.00014566,2]
[403172490,1769242243352,-335.0,0.00014593,2]
[403172491,1769242243361,-151.0,0.00014607,2]
[403172492,1769242243371,-1000.0,0.00014781,2]
[403172493,1769242243380,-1000.0,0.0001479,2]
[403172494,1769242243389,-433.0,0.00014892,2]
[403172495,1769242243399,-4721.62468318,0.00015011,2]
[403172496,1769242243408,-201.93286099,0.00015114,2]
[403172497,1769242243418,-987.88080104,0.00015114,2]
[403172498,1769242243428,-252.0,0.00015165,2]
[403172499,1769242243437,-587.0,0.00015165,2]
[403172500,1769242243448,-2351.0,0.00015245,2]
[403172501,1769242243458,-170.92,0.00015374,2]
[403172502,1769242243467,-209.76,0.00015397,2]
[403172503,1769242243476,-1055.54,0.000154,2]
[403172504,1769242243486,-1000.0,0.00015409,2]
[403172505,1769242243495,-625.171478,0.00015543,2]
[403172506,1769242243504,-900.26216537,0.0001556,2]
[403172507,1769242243514,-331.15868016,0.00015579,2]
[403172508,1769242243523,-4721.62468318,0.00015589,2]
[403172509,1769242243533,-500.0,0.0001559,2]
[403172510,1769242243543,-226.94622895,0.0001559,2]
[403172511,1769242243552,-500.0,0.0001559,2]
[403172512,1769242243561,-181669.5670641,0.00015591,2]
[403172513,1769242243570,-346.92554585,0.0001566,2]
[403172514,1769242243580,-209.40437684,0.00015662,2]
[403172515,1769242243589,-1024.43239068,0.00015662,2]
[403172516,1769242243598,-1000.0,0.00015668,2]
[403172517,1769242243608,-1714.81629741,0.00015679,2]
[403172518,1769242243618,-161.92,0.00015733,2]
[403172519,1769242243627,-881.39032,0.0001584,2]
[403172520,1769242243636,-881.39033,0.0001584,2]
[403172521,1769242243646,-881.39033,0.0001584,2]
[403172522,1769242243655,-500.0,0.00015873,2]
[403172523,1769242243664,-567.68971129,0.00015873,2]
[403172524,1769242243677,-500.0,0.00015873,2]
[403172525,1769242243687,-582.09385403,0.00015873,2]
[403172526,1769242243696,-501.32971868,0.00015873,2]
[403172527,1769242243706,-500.0,0.00015873,2]
[403172528,1769242243718,-500.0,0.00015873,2]
[403172529,1769242243727,-500.0,0.00015873,2]
[403172530,1769242243740,-500.0,0.00015873,2]
[403172531,1769242243750,-500.0,0.00015873,2]
[403172532,1769242243760,-225.21984276,0.00015873,2]
[403172533,1769242243769,-500.0,0.00015873,2]
[403172534,1769242243779,-501.22866478,0.00015873,2]
[403172535,1769242243788,-500.0,0.00015873,2]
[403172536,1769242243798,-500.0,0.00015873,2]
[403172537,1769242243807,-166.2984837,0.00015873,2]
[403172538,1769242243816,-170.17092774,0.00015873,2]
[403172539,1769242243825,-177.5178643,0.00015873,2]
[403172540,1769242243835,-500.0,0.00015873,2]
[403172541,1769242243845,-500.0,0.00015873,2]
[403172542,1769242243854,-167.94526228,0.00015873,2]
[403172543,1769242243863,-500.0,0.00015873,2]
[403172544,1769242243873,-173.62225723,0.00015873,2]
[403172545,1769242243882,-164.50729817,0.00015873,2]
[403172546,1769242243891,-500.0,0.00015873,2]
[403172547,1769242243901,-278.24022797,0.00015873,2]
[403172548,1769242243910,-502.79552946,0.00015873,2]
[403172549,1769242243919,-500.0,0.00015873,2]
[403172550,1769242243930,-500.0,0.00015873,2]
[403172551,1769242243939,-501.08182749,0.00015873,2]
[403172552,1769242243948,-500.0,0.00015873,2]
[403172553,1769242243959,-500.0,0.00015873,2]
[403172554,1769242243970,-500.0,0.00015873,2]
[403172555,1769242243980,-500.0,0.00015873,2]
[403172556,1769242243989,-500.0,0.00015873,2]
[403172557,1769242243999,-166.64412679,0.00015873,2]
[403172558,1769242244009,-500.0,0.00015873,2]
[403172559,1769242244022,-500.0,0.00015873,2]
[403172560,1769242244031,-500.75682028,0.00015873,2]
[403172561,1769242244042,-500.0,0.00015873,2]
[403172562,1769242244053,-500.0,0.00015873,2]
[403172563,1769242244063,-500.0,0.00015873,2]
[403172564,1769242244074,-500.0,0.00015873,2]
[403172565,1769242244085,-500.0,0.00015873,2]
[403172566,1769242244095,-500.0,0.00015873,2]
[403172567,1769242244104,-489.57842878,0.00015873,2]
[403172568,1769242244113,-500.0,0.00015873,2]
[403172569,1769242244125,-163.72504406,0.00015873,2]
[403172570,1769242244135,-500.0,0.00015873,2]
[403172571,1769242244144,-500.0,0.00015873,2]
[403172572,1769242244153,-500.0,0.00015873,2]
[403172573,1769242244162,-500.0,0.00015873,2]
[403172574,1769242244171,-217.42155575,0.00015873,2]
[403172575,1769242244180,-169.48430069,0.00015873,2]
[403172576,1769242244189,-166.22451781,0.00015873,2]
[403172577,1769242244199,-500.0,0.00015873,2]
[403172578,1769242244208,-5200.0,0.000159,5]
[403172579,1769242244218,-1000.0,0.000159,2]
[403172580,1769242244228,-329.58,0.0001595,2]
[403172581,1769242244240,-881.39033,0.00015999,2]
[403172582,1769242244251,-881.39033,0.00015999,2]
[403172583,1769242244261,-881.39033,0.00015999,2]
[403172584,1769242244271,-44802.72416849,0.00016,4]
[403172585,1769242244281,-200.0,0.00016,2]
[403172586,1769242244290,-200.0,0.00016,2]
[403172587,1769242244300,-253.570956,0.00016,2]
[403172588,1769242244310,-152.0,0.00016004,4]
[403172589,1769242244320,-502.0,0.00016027,2]
[403172590,1769242244329,-180.3543553,0.0001604,2]
[403172591,1769242244338,-1050.88046112,0.00016071,5]
[403172592,1769242244347,-1000.0,0.000161,2]
[403172593,1769242244356,-1000.0,0.000161,2]
[403172594,1769242244365,-151.0,0.00016116,2]
[403172595,1769242244375,-151.0,0.00016116,2]
[403172596,1769242244390,-151.0,0.00016116,2]
[403172597,1769242244399,-182.41857,0.00016116,2]
[403172598,1769242244408,-310.44,0.00016116,2]
[403172599,1769242244418,-999.99,0.00016116,2]
[403172600,1769242244427,-299.99,0.00016116,4]
[403172601,1769242244436,-9809.41,0.00016116,2]
[403172602,1769242244445,-1843.43,0.00016116,2]
[403172603,1769242244454,-182.74,0.00016116,2]
[403172604,1769242244463,-9999.99,0.00016116,2]
[403172605,1769242244472,-150.99,0.00016116,2]
[403172606,1769242244481,-35644.19,0.00016116,2]
[403172607,1769242244490,-331.15868013,0.00016159,2]
[403172608,1769242244501,-200.0,0.0001616,2]
[403172609,1769242244511,-200.0,0.0001616,2]
[403172610,1769242244520,-4721.62468318,0.00016167,2]
[403172611,1769242244530,-331.0,0.00016177,2]
[403172612,1769242244539,-150.0,0.000162,2]
[403172613,1769242244548,-1000.0,0.000162,2]
[403172614,1769242244559,-253.21721524,0.00016208,2]
[403172615,1769242244568,-378.79781008,0.00016208,2]
[403172616,1769242244577,-512.523,0.00016208,2]
[403172617,1769242244586,-217.15233878,0.0001621,2]
[403172618,1769242244595,-152.0,0.00016221,5]
[403172619,1769242244604,-150.0,0.00016272,2]
[403172620,1769242244612,-333.29,0.00016286,2]
[403172621,1769242244621,-200.0,0.00016322,2]
[403172622,1769242244630,-200.0,0.00016322,2]
[403172623,1769242244639,-10000.0,0.00016338,2]
[403172624,1769242244648,-170.92,0.0001634,2]
[403172625,1769242244656,-150.0,0.00016344,2]
[403172626,1769242244666,-209.76,0.0001636,2]
[403172627,1769242244678,-150.0,0.000164,2]
[403172628,1769242244686,-150.0,0.00016416,2]
[403172629,1769242244695,-200.0,0.00016417,2]
[403172630,1769242244704,-500.0,0.0001642,2]
[403172631,1769242244713,-1000.0,0.00016421,2]
[403172632,1769242244722,-1000.0,0.00016421,2]
[403172633,1769242244731,-1000.0,0.00016421,2]
[403172634,1769242244741,-505.83466941,0.00016421,2]
[403172635,1769242244750,-1000.0,0.00016421,2]
[403172636,1769242244758,-607.15821099,0.00016421,2]
[403172637,1769242244767,-542.33856448,0.00016421,2]
[403172638,1769242244776,-544.47711737,0.00016421,2]
[403172639,1769242244784,-1000.0,0.00016421,2]
[403172640,1769242244793,-1000.0,0.00016421,2]
[403172641,1769242244801,-1000.0,0.00016421,2]
[403172642,1769242244810,-1000.0,0.00016421,2]
[403172643,1769242244818,-1000.0,0.00016421,2]
[403172644,1769242244831,-1000.0,0.00016421,2]
[403172645,1769242244840,-1000.0,0.00016421,2]
[403172646,1769242244849,-1000.0,0.00016421,2]
[403172647,1769242244858,-1000.0,0.00016421,2]
[403172648,1769242244866,-1000.0,0.00016421,2]
[403172649,1769242244876,-1000.0,0.00016421,2]
[403172650,1769242244885,-1000.0,0.00016421,2]
[403172651,1769242244895,-1000.0,0.00016421,2]
[403172652,1769242244906,-1007.32533855,0.00016421,2]
[403172653,1769242244917,-239.10627716,0.00016421,2]
[403172654,1769242244927,-1000.0,0.00016421,2]
[403172655,1769242244937,-1000.0,0.00016421,2]
[403172656,1769242244947,-1000.0,0.00016421,2]
[403172657,1769242244960,-1000.0,0.00016421,2]
[403172658,1769242244970,-1000.0,0.00016421,2]
[403172659,1769242244979,-303.1127939,0.00016421,2]
[403172660,1769242244988,-1000.0,0.00016421,2]
[403172661,1769242244998,-875.92645048,0.00016421,2]
[403172662,1769242245007,-1000.0,0.00016421,2]
[403172663,1769242245016,-1000.0,0.00016421,2]
[403172664,1769242245025,-1000.0,0.00016421,2]
[403172665,1769242245035,-1000.0,0.00016421,2]
[403172666,1769242245044,-1000.0,0.00016423,2]
[403172667,1769242245053,-500.0,0.00016437,2]
[403172668,1769242245062,-575.46212232,0.00016438,2]
[403172669,1769242245072,-575.46212232,0.00016438,2]
[403172670,1769242245082,-575.46212232,0.00016438,2]
[403172671,1769242245091,-575.46212232,0.00016438,2]
[403172672,1769242245101,-575.46212232,0.00016438,2]
[403172673,1769242245112,-575.46212232,0.00016438,2]
[403172674,1769242245122,-575.46212232,0.00016438,2]
[403172675,1769242245132,-575.46212232,0.00016438,2]
[403172676,1769242245142,-575.46212232,0.00016438,2]
[403172677,1769242245153,-575.46212232,0.00016438,2]
[403172678,1769242245163,-575.46212232,0.00016438,2]
[403172679,1769242245172,-575.46212232,0.00016438,2]
[403172680,1769242245181,-575.46212232,0.00016438,2]
[403172681,1769242245195,-575.46212232,0.00016438,2]
[403172682,1769242245206,-575.46212232,0.00016438,2]
[403172683,1769242245219,-575.46212232,0.00016438,2]
[403172684,1769242245230,-575.46212232,0.00016438,2]
[403172685,1769242245241,-575.46212232,0.00016438,2]
[403172686,1769242245251,-575.46212232,0.00016438,2]
[403172687,1769242245262,-575.46212232,0.00016438,2]
[403172688,1769242245271,-575.46212232,0.00016438,2]
[403172689,1769242245282,-575.46212232,0.00016438,2]
[403172690,1769242245294,-575.46212232,0.00016438,2]
[403172691,1769242245306,-575.46212232,0.00016438,2]
[403172692,1769242245316,-575.46212232,0.00016438,2]
[403172693,1769242245326,-575.46212232,0.00016438,2]
[403172694,1769242245336,-575.46212232,0.00016438,2]
[403172695,1769242245346,-575.46212232,0.00016438,2]
[403172696,1769242245356,-575.46212232,0.00016438,2]
[403172697,1769242245366,-575.46212232,0.00016438,2]
[403172698,1769242245376,-575.46212232,0.00016438,2]
[403172699,1769242245389,-575.46212232,0.00016438,2]
[403172700,1769242245399,-575.46212232,0.00016438,2]
[403172701,1769242245408,-575.46212232,0.00016438,2]
[403172702,1769242245418,-575.46212232,0.00016438,2]
[403172703,1769242245428,-575.46212232,0.00016438,2]
[403172704,1769242245437,-575.46212232,0.00016438,2]
[403172705,1769242245447,-575.46212232,0.00016438,2]
[403172706,1769242245456,-575.46212232,0.00016438,2]
[403172707,1769242245466,-575.46212232,0.00016438,2]
[403172708,1769242245475,-575.46212232,0.00016438,2]
[403172709,1769242245485,-575.46212232,0.00016438,2]
[403172710,1769242245495,-575.46212232,0.00016438,2]
[403172711,1769242245506,-575.46212232,0.00016438,2]
[403172712,1769242245515,-575.46212232,0.00016438,2]
[403172713,1769242245525,-575.46212232,0.00016438,2]
[403172714,1769242245534,-575.46212232,0.00016438,2]
[403172715,1769242245545,-575.46212232,0.00016438,2]
[403172716,1769242245555,-575.46212232,0.00016438,2]
[403172717,1769242245565,-575.46212232,0.00016438,2]
[403172718,1769242245578,-575.46212232,0.00016438,2]
[403172719,1769242245588,-575.46212232,0.00016438,2]
[403172720,1769242245597,-575.46212232,0.00016438,2]
[403172721,1769242245607,-575.46212232,0.00016438,2]
[403172722,1769242245616,-575.46212232,0.00016438,2]
[403172723,1769242245626,-226.54581965,0.00016438,2]
[403172724,1769242245635,-226.54581965,0.00016438,2]
[403172725,1769242245644,-564.99917464,0.00016438,2]
[403172726,1769242245654,-564.99917464,0.00016438,2]
[403172727,1769242245663,-564.99917464,0.00016438,2]
[403172728,1769242245676,-564.99917464,0.00016438,2]
[403172729,1769242245687,-564.99917464,0.00016438,2]
[403172730,1769242245696,-564.99917464,0.00016438,2]
[403172731,1769242245705,-564.99917464,0.00016438,2]
[403172732,1769242245715,-564.99917464,0.00016438,2]
[403172733,1769242245724,-564.99917464,0.00016438,2]
[403172734,1769242245734,-564.99917464,0.00016438,2]
[403172735,1769242245745,-564.99917464,0.00016438,2]
[403172736,1769242245755,-564.99917464,0.00016438,2]
[403172737,1769242245764,-564.99917464,0.00016438,2]
[403172738,1769242245774,-564.99917464,0.00016438,2]
[403172739,1769242245788,-564.99917464,0.00016438,2]
[403172740,1769242245798,-564.99917464,0.00016438,2]
[403172741,1769242245808,-564.99917464,0.00016438,2]
[403172742,1769242245817,-564.99917464,0.00016438,2]
[403172743,1769242245827,-564.99917464,0.00016438,2]
[403172744,1769242245838,-564.99917464,0.00016438,2]
[403172745,1769242245847,-564.99917464,0.00016438,2]
[403172746,1769242245857,-564.99917464,0.00016438,2]
[403172747,1769242245867,-564.99917464,0.00016438,2]
[403172748,1769242245876,-564.99917464,0.00016438,2]
[403172749,1769242245886,-564.99917464,0.00016438,2]
[403172750,1769242245896,-564.99917464,0.00016438,2]
[403172751,1769242245905,-564.99917464,0.00016438,2]
[403172752,1769242245915,-564.99917464,0.00016438,2]
[403172753,1769242245924,-564.99917464,0.00016438,2]
[403172754,1769242245934,-564.99917464,0.00016438,2]
[403172755,1769242245944,-564.99917466,0.00016438,2]
[403172756,1769242245955,-564.99917466,0.00016438,2]
[403172757,1769242245965,-867.75,0.00016438,2]
[403172759,1769242245978,-400.59,0.00016438,2]